fUST/lending_fUST_20240930
["ID","MTS","AMOUNT","RATE_DAILY","PERIOD"]
[339476150,1727627439495,-500.0,0.00014718,2]
[339476152,1727627439505,-500.0,0.00014718,2]
[339476154,1727627439514,-500.0,0.00014718,2]
[339476157,1727627439526,-500.0,0.00014718,2]
[339476187,1727627439791,-500.0,0.00014718,2]
[339476190,1727627439803,-500.0,0.00014718,2]
[339476192,1727627439814,-500.0,0.00014718,2]
[339476194,1727627439825,-500.0,0.00014718,2]
[339476196,1727627439836,-500.0,0.00014718,2]
[339476198,1727627439846,-500.0,0.00014718,2]
[339476200,1727627439856,-500.0,0.00014718,2]
[339476202,1727627439866,-500.0,0.00014718,2]
[339476204,1727627439875,-500.0,0.00014718,2]
[339476207,1727627439887,-500.0,0.00014718,2]
[339476209,1727627439897,-500.0,0.00014718,2]
[339476211,1727627439909,-500.0,0.00014718,2]
[339476213,1727627439919,-500.0,0.00014718,2]
[339476215,1727627439929,-500.0,0.00014718,2]
[339476218,1727627439941,-309.95667221,0.00014718,2]
[339476220,1727627439951,-500.0,0.00014718,2]
[339476222,1727627439961,-500.0,0.00014718,2]
[339476224,1727627439970,-500.0,0.00014718,2]
[339476226,1727627439980,-2456.1385269,0.00014719,2]
[339476228,1727627439992,-1180.5122957,0.00014719,2]
[339476247,1727627440343,-324.357,0.00014719,2]
[339476551,1727627442944,-500.0,0.00014719,2]
[339477656,1727627533654,159.154156,0.00013825,2]
[339477657,1727627533871,159.154156,0.00013881,2]
[339477658,1727627534083,159.154156,0.00013936,2]
[339477659,1727627534555,159.154156,0.00013992,2]
[339477660,1727627534768,159.154156,0.00014047,2]
[339477661,1727627534986,159.154156,0.00014102,2]
[339477662,1727627641690,291.360539,0.00013699,2]
[339477664,1727627770669,187.243665,0.00013699,2]
[339477666,1727628072541,159.154156,0.00013691,2]
[339477667,1727628072766,159.154156,0.00013793,2]
[339477668,1727628073004,159.154156,0.00013895,2]
[339477669,1727628073239,159.154156,0.00013997,2]
[339477670,1727628073467,159.154156,0.00014099,2]
[339477671,1727628127199,500.0,0.00021917,120]
[339477672,1727628127621,500.0,0.00021917,120]
[339477673,1727628127914,500.0,0.00021917,120]
[339477674,1727628128178,500.0,0.00021917,120]
[339477675,1727628128448,500.0,0.00021917,120]
[339477676,1727628128770,500.0,0.00021917,120]
[339477677,1727628129281,500.0,0.00021917,120]
[339477678,1727628129434,500.0,0.00021917,120]
[339477679,1727628129730,500.0,0.00021917,120]
[339477680,1727628130042,500.0,0.00021917,120]
[339477681,1727628131249,500.0,0.00021917,120]
[339477682,1727628131365,500.0,0.00021917,120]
[339477683,1727628131417,500.0,0.00021917,120]
[339477684,1727628131564,500.0,0.00021917,120]
[339477685,1727628131842,500.0,0.00021917,120]
[339477686,1727628132133,500.0,0.00021917,120]
[339477687,1727628132492,500.0,0.00021917,120]
[339477688,1727628132759,500.0,0.00021917,120]
[339477689,1727628133049,500.0,0.00021917,120]
[339477690,1727628133307,500.0,0.00021917,120]
[339477691,1727628133634,500.0,0.00021917,120]
[339477693,1727628276791,-500.0,0.00022191,120]
[339477695,1727628359819,187.243665,0.00013699,2]
[339477696,1727628427573,170.34,0.00014118,2]
[339478086,1727628643804,-193.76948338,0.00014288,2]
[339478090,1727628643828,-7067.94404438,0.00014378,2]
[339478093,1727628643852,-201.69346749,0.00014399,2]
[339478097,1727628643874,-176.60570181,0.00014488,2]
[339478100,1727628643897,-300.0,0.00014499,2]
[339478103,1727628643919,-300.0,0.00014499,2]
[339478107,1727628643943,-3470.86531302,0.000145,2]
[339478110,1727628643967,-176.60570179,0.00014554,2]
[339478113,1727628643989,-500.0,0.00014573,2]
[339478117,1727628644012,-500.0,0.00014573,2]
[339478120,1727628644034,-500.0,0.00014573,2]
[339478124,1727628644056,-500.0,0.00014573,2]
[339478127,1727628644079,-500.0,0.00014573,2]
[339478130,1727628644100,-500.0,0.00014573,2]
[339478134,1727628644125,-500.0,0.00014587,2]
[339478137,1727628644148,-500.0,0.00014587,2]
[339478141,1727628644171,-500.0,0.00014587,2]
[339478144,1727628644196,-500.0,0.00014587,2]
[339478148,1727628644219,-500.0,0.00014587,2]
[339478151,1727628644242,-500.0,0.00014587,2]
[339478155,1727628644268,-500.0,0.00014587,2]
[339478158,1727628644291,-272.99618201,0.00014587,2]
[339478161,1727628644313,-500.0,0.00014587,2]
[339478165,1727628644337,-500.0,0.00014587,2]
[339478169,1727628644360,-500.0,0.00014587,2]
[339478172,1727628644386,-250.0,0.00014587,2]
[339478176,1727628644411,-500.0,0.00014587,2]
[339478179,1727628644433,-294.63361623,0.00014587,2]
[339478183,1727628644458,-605.53035603,0.00014587,2]
[339478186,1727628644480,-581.18795319,0.00014587,2]
[339478189,1727628644504,-500.0,0.00014587,2]
[339478193,1727628644528,-500.0,0.00014587,2]
[339478196,1727628644552,-500.0,0.00014587,2]
[339478200,1727628644577,-500.0,0.00014587,2]
[339478203,1727628644601,-579.75560603,0.00014587,2]
[339478207,1727628644625,-500.0,0.00014587,2]
[339478210,1727628644648,-15175.42064111,0.00014588,2]
[339478214,1727628644671,-1964.91082152,0.00014588,2]
[339478218,1727628644698,-92560.66870442,0.00014588,2]
[339478221,1727628644720,-1300.45402971,0.00014589,2]
[339478224,1727628644747,-218489.423428,0.00014589,2]
[339478228,1727628644770,-3852.28465206,0.00014589,2]
[339478231,1727628644793,-109244.711714,0.00014589,2]
[339478235,1727628644816,-1926.14232603,0.00014589,2]
[339478238,1727628644840,-49404.39625779,0.00014599,2]
[339480992,1727628672579,162.0,0.0001178,2]
[339481086,1727628673544,162.0,0.0001375,2]
[339482214,1727628685610,500.0,0.00021917,120]
[339482242,1727628685872,381.8332252,0.00021917,120]
[339483236,1727629183292,161.965265,0.00013537,2]
[339483237,1727629183500,161.965265,0.00013592,2]
[339483238,1727629183706,161.965265,0.00013646,2]
[339483239,1727629183918,161.965265,0.000137,2]
[339483240,1727629184144,161.965265,0.00013754,2]
[339483241,1727629184371,161.965265,0.00013809,2]
[339483242,1727629184612,161.965265,0.00013863,2]
[339483243,1727629184832,161.965265,0.00013917,2]
[339483244,1727629185048,161.965265,0.00013972,2]
[339483245,1727629185452,161.965265,0.00014026,2]
[339483246,1727629185791,161.965265,0.0001408,2]
[339483248,1727629251842,5000.0,0.00014118,2]
[339483249,1727629252935,24900.0,0.00013351,2]
[339483254,1727629300307,150.448302,0.000141,2]
[339483263,1727629483570,-161.965265,0.00014134,2]
[339483264,1727629483594,-161.965265,0.00014189,2]
[339483265,1727629483618,-161.965265,0.00014243,2]
[339483266,1727629483640,-7067.94404438,0.00014258,2]
[339483267,1727629483666,-286.79536363,0.00014259,2]
[339483268,1727629483688,-800.12950139,0.00014263,2]
[339483269,1727629483710,-286.79536363,0.00014272,2]
[339483270,1727629483736,-2000.00000001,0.00014276,2]
[339483271,1727629483759,-286.79536363,0.00014284,2]
[339483272,1727629483781,-172.75538881,0.00014284,2]
[339483273,1727629483803,-743.06720279,0.00014284,2]
[339483274,1727629483824,-172.75538881,0.00014285,2]
[339483275,1727629483846,-172.75538881,0.00014285,2]
[339483276,1727629483867,-500.0,0.00014383,2]
[339483277,1727629483888,-222.44695612,0.00014383,2]
[339483278,1727629483915,-506.7926692,0.00014383,2]
[339483279,1727629483938,-500.0,0.00014383,2]
[339483280,1727629483960,-364.8446289,0.00014383,2]
[339483281,1727629483982,-500.0,0.00014383,2]
[339483282,1727629484004,-250.67233328,0.00014383,2]
[339483283,1727629484026,-500.0,0.00014383,2]
[339483284,1727629484048,-498.28171185,0.00014383,2]
[339483285,1727629484070,-408.07864947,0.00014383,2]
[339483286,1727629484095,-500.0,0.00014383,2]
[339483287,1727629484117,-500.0,0.00014383,2]
[339483288,1727629484140,-500.0,0.00014383,2]
[339483289,1727629484165,-500.0,0.00014383,2]
[339483290,1727629484188,-500.0,0.00014383,2]
[339483291,1727629484210,-500.0,0.00014383,2]
[339483292,1727629484235,-500.0,0.00014383,2]
[339483293,1727629484259,-500.0,0.00014383,2]
[339483294,1727629484282,-500.0,0.00014383,2]
[339483295,1727629484306,-500.0,0.00014383,2]
[339483296,1727629484329,-500.0,0.00014383,2]
[339483297,1727629484352,-253.76723574,0.00014383,2]
[339483298,1727629484377,-500.0,0.00014383,2]
[339483299,1727629484398,-388.69008851,0.00014383,2]
[339483300,1727629484423,-500.0,0.00014383,2]
[339483301,1727629484446,-500.0,0.00014383,2]
[339483302,1727629484470,-500.0,0.00014383,2]
[339483303,1727629484492,-500.0,0.00014383,2]
[339483304,1727629484517,-500.0,0.00014383,2]
[339483305,1727629484540,-500.0,0.00014383,2]
[339483306,1727629484567,-500.0,0.00014383,2]
[339483307,1727629484589,-500.0,0.00014383,2]
[339483308,1727629484612,-500.0,0.00014383,2]
[339483309,1727629484635,-500.0,0.00014383,2]
[339483310,1727629484662,-500.0,0.00014383,2]
[339483311,1727629484683,-500.0,0.00014383,2]
[339483312,1727629484705,-610.5973765,0.00014383,2]
[339483313,1727629484728,-500.0,0.00014383,2]
[339483314,1727629484752,-500.0,0.00014383,2]
[339483315,1727629484774,-500.0,0.00014383,2]
[339483316,1727629484796,-500.0,0.00014383,2]
[339483317,1727629484820,-500.0,0.00014383,2]
[339483318,1727629484844,-500.0,0.00014383,2]
[339483319,1727629484866,-500.0,0.00014383,2]
[339483320,1727629484890,-500.0,0.00014383,2]
[339483321,1727629484915,-500.0,0.00014383,2]
[339483322,1727629484938,-500.0,0.00014383,2]
[339483323,1727629484963,-500.0,0.00014383,2]
[339483324,1727629484985,-500.0,0.00014383,2]
[339483325,1727629485007,-500.0,0.00014383,2]
[339483326,1727629485033,-500.0,0.00014383,2]
[339483327,1727629485055,-500.0,0.00014383,2]
[339483328,1727629485082,-500.0,0.00014383,2]
[339483329,1727629485104,-500.0,0.00014383,2]
[339483330,1727629485129,-500.0,0.00014383,2]
[339483331,1727629485152,-500.0,0.00014383,2]
[339483332,1727629485178,-500.0,0.00014383,2]
[339483333,1727629485202,-500.0,0.00014383,2]
[339483334,1727629485225,-500.0,0.00014383,2]
[339483335,1727629485249,-500.0,0.00014383,2]
[339483336,1727629485271,-500.0,0.00014383,2]
[339483337,1727629485293,-500.0,0.00014383,2]
[339483338,1727629485317,-500.0,0.00014383,2]
[339483339,1727629485342,-500.0,0.00014383,2]
[339483340,1727629485366,-300.0,0.00014383,2]
[339483341,1727629485390,-500.0,0.00014383,2]
[339483342,1727629485413,-500.0,0.00014383,2]
[339483343,1727629485437,-500.0,0.00014383,2]
[339483344,1727629485459,-500.0,0.00014383,2]
[339483345,1727629485484,-500.0,0.00014383,2]
[339483346,1727629485507,-500.0,0.00014383,2]
[339483347,1727629485531,-500.0,0.00014383,2]
[339483348,1727629485554,-500.0,0.00014383,2]
[339483349,1727629485578,-500.0,0.00014383,2]
[339483350,1727629485601,-500.0,0.00014383,2]
[339483351,1727629485625,-500.0,0.00014383,2]
[339483352,1727629485651,-500.0,0.00014383,2]
[339483353,1727629485677,-500.0,0.00014383,2]
[339483354,1727629485699,-500.0,0.00014383,2]
[339483355,1727629485722,-339.05115402,0.00014383,2]
[339483356,1727629485745,-500.0,0.00014383,2]
[339483357,1727629485769,-500.0,0.00014383,2]
[339483358,1727629485792,-500.0,0.00014383,2]
[339483359,1727629485813,-300.0,0.00014383,2]
[339483360,1727629485835,-300.0,0.00014383,2]
[339483361,1727629485857,-107068.987674,0.00014384,2]
[339483362,1727629485879,-48482.9711606,0.00014384,2]
[339483363,1727629486117,-107068.987674,0.00014385,2]
[339483364,1727629486140,-20474.14188692,0.00014385,2]
[339483365,1727629497435,4630.901708,0.00013699,2]
[339483366,1727629501758,1034.66,0.00010959,2]
[339483370,1727629512283,862.22,0.00010959,2]
[339483372,1727629522807,718.52,0.00010959,2]
[339483373,1727629533440,598.76,0.00010959,2]
[339483374,1727629544244,498.97,0.00010959,2]
[339483376,1727629554851,415.81,0.00010959,2]
[339483377,1727629565691,346.51,0.00010959,2]
[339483378,1727629576144,288.75,0.00010959,2]
[339483379,1727629586525,240.63,0.00010959,2]
[339483380,1727629597110,200.52,0.00010959,2]
[339483381,1727629607583,167.1,0.00010959,2]
[339483382,1727629618096,835.55,0.00010959,2]
[339483383,1727629622389,4465.7939795,0.00013318,2]
[339483385,1727629626021,98511.0,0.0001,2]
[339483386,1727629651549,4311.4835398,0.00013424,2]
[339483389,1727629728947,163.0,0.0001158,2]
[339483390,1727629754102,225.0,0.00013367,2]
[339483391,1727629754320,225.0,0.00013403,2]
[339483392,1727629754568,225.0,0.0001344,2]
[339483393,1727629754831,225.0,0.00013477,2]
[339483394,1727629755053,225.0,0.00013513,2]
[339483395,1727629755486,225.0,0.0001355,2]
[339483396,1727629755717,225.0,0.00013586,2]
[339483397,1727629756194,225.0,0.00013623,2]
[339483398,1727629756420,225.0,0.0001366,2]
[339483399,1727629756621,225.0,0.00013696,2]
[339483400,1727629756861,225.0,0.00013733,2]
[339483401,1727629757066,225.0,0.0001377,2]
[339483402,1727629757344,225.0,0.00013806,2]
[339483403,1727629757519,225.0,0.00013843,2]
[339483404,1727629757722,225.0,0.0001388,2]
[339483405,1727629757948,225.0,0.00013916,2]
[339483406,1727629758160,225.0,0.00013953,2]
[339483407,1727629758610,225.0,0.0001399,2]
[339483408,1727629759157,225.0,0.00014026,2]
[339483410,1727629759379,225.0,0.00014063,2]
[339483411,1727629794741,160.823211,0.000136,2]
[339483413,1727629823263,250.0,0.00013267,2]
[339483421,1727629838325,-175.47063329,0.00014262,2]
[339483422,1727629838335,-155.71286929,0.00014262,2]
[339483423,1727629838345,-500.0,0.00014262,2]
[339483424,1727629838356,-605.39124023,0.00014262,2]
[339483425,1727629838365,-500.0,0.00014262,2]
[339483426,1727629838375,-204.75486844,0.00014262,2]
[339483427,1727629838384,-298.79719829,0.00014262,2]
[339483428,1727629838393,-500.0,0.00014262,2]
[339483429,1727629838403,-500.0,0.00014262,2]
[339483430,1727629838412,-500.0,0.00014262,2]
[339483431,1727629838421,-500.0,0.00014262,2]
[339483432,1727629838431,-500.0,0.00014262,2]
[339483433,1727629838441,-500.0,0.00014262,2]
[339483434,1727629838450,-361.52969286,0.00014262,2]
[339483435,1727629838460,-500.0,0.00014262,2]
[339483436,1727629838470,-500.0,0.00014262,2]
[339483437,1727629838479,-697.84341033,0.00014262,2]
[339483438,1727629838489,-500.0,0.00014262,2]
[339483439,1727629838498,-500.0,0.00014262,2]
[339483441,1727629838507,-697.84341033,0.00014262,2]
[339483442,1727629838515,-500.0,0.00014262,2]
[339483443,1727629838526,-500.0,0.00014262,2]
[339483444,1727629838536,-697.84341033,0.00014262,2]
[339483445,1727629838545,-500.0,0.00014262,2]
[339483446,1727629838554,-500.0,0.00014262,2]
[339483447,1727629838563,-697.84341033,0.00014262,2]
[339483448,1727629838572,-500.0,0.00014262,2]
[339483449,1727629838582,-500.0,0.00014262,2]
[339483450,1727629838591,-500.0,0.00014262,2]
[339483451,1727629838600,-500.0,0.00014262,2]
[339483452,1727629838609,-697.84341033,0.00014262,2]
[339483453,1727629838618,-500.0,0.00014262,2]
[339483454,1727629838627,-500.0,0.00014262,2]
[339483455,1727629838637,-697.84341033,0.00014262,2]
[339483456,1727629838647,-500.0,0.00014262,2]
[339483457,1727629838657,-500.0,0.00014262,2]
[339483458,1727629838666,-697.84341033,0.00014262,2]
[339483459,1727629838675,-500.0,0.00014262,2]
[339483460,1727629838685,-697.84341033,0.00014262,2]
[339483461,1727629838695,-500.0,0.00014262,2]
[339483462,1727629838704,-697.84341033,0.00014262,2]
[339483463,1727629838713,-500.0,0.00014262,2]
[339483464,1727629838722,-500.0,0.00014262,2]
[339483465,1727629838732,-697.84341033,0.00014262,2]
[339483466,1727629838742,-500.0,0.00014262,2]
[339483467,1727629838751,-697.84341033,0.00014262,2]
[339483468,1727629838761,-500.0,0.00014262,2]
[339483469,1727629838773,-500.0,0.00014262,2]
[339483470,1727629838783,-697.84341033,0.00014262,2]
[339483471,1727629838793,-500.0,0.00014262,2]
[339483472,1727629838803,-697.84341033,0.00014262,2]
[339483473,1727629838813,-594.99242737,0.00014262,2]
[339483474,1727629838822,-500.0,0.00014262,2]
[339483475,1727629838832,-697.84341033,0.00014262,2]
[339483476,1727629838842,-500.0,0.00014262,2]
[339483477,1727629838852,-500.0,0.00014262,2]
[339483478,1727629838861,-697.84341033,0.00014262,2]
[339483479,1727629838871,-697.84341033,0.00014262,2]
[339483480,1727629838881,-500.0,0.00014262,2]
[339483481,1727629838890,-500.0,0.00014262,2]
[339483482,1727629838900,-697.84341033,0.00014262,2]
[339483483,1727629838910,-500.0,0.00014262,2]
[339483484,1727629838919,-697.84341033,0.00014262,2]
[339483485,1727629838929,-500.0,0.00014262,2]
[339483486,1727629838939,-697.84341033,0.00014262,2]
[339483487,1727629838948,-500.0,0.00014262,2]
[339483488,1727629838958,-697.84341033,0.00014262,2]
[339483489,1727629838967,-500.0,0.00014262,2]
[339483490,1727629838977,-697.84341033,0.00014262,2]
[339483491,1727629838987,-697.84341033,0.00014262,2]
[339483492,1727629838998,-697.84341033,0.00014262,2]
[339483493,1727629839007,-500.0,0.00014262,2]
[339483494,1727629839017,-394.53721057,0.00014262,2]
[339483495,1727629839027,-697.84341033,0.00014262,2]
[339483496,1727629839037,-697.84341033,0.00014262,2]
[339483497,1727629839047,-697.84341033,0.00014262,2]
[339483498,1727629839057,-697.84341033,0.00014262,2]
[339483499,1727629839067,-697.84341033,0.00014262,2]
[339483500,1727629839076,-697.84341033,0.00014262,2]
[339483501,1727629839086,-697.84341033,0.00014262,2]
[339483502,1727629839095,-697.84341033,0.00014262,2]
[339483503,1727629839104,-697.84341033,0.00014262,2]
[339483504,1727629839113,-697.84341033,0.00014262,2]
[339483505,1727629839123,-697.84341033,0.00014262,2]
[339483506,1727629839132,-697.84341033,0.00014262,2]
[339483507,1727629839141,-697.84341033,0.00014262,2]
[339483508,1727629839151,-697.84341033,0.00014262,2]
[339483509,1727629839160,-697.84341033,0.00014262,2]
[339483510,1727629839169,-697.84341033,0.00014262,2]
[339483511,1727629839178,-697.84341033,0.00014262,2]
[339483512,1727629839188,-697.84341033,0.00014262,2]
[339483513,1727629839198,-697.84341033,0.00014262,2]
[339483514,1727629839207,-300.0,0.00014262,2]
[339483515,1727629839216,-300.0,0.00014262,2]
[339483516,1727629839225,-2064.80130756,0.00014263,2]
[339483517,1727629839236,-96362.0889062,0.00014264,2]
[339483518,1727629839247,-20189.1403042,0.00014264,2]
[339483519,1727629839257,-96362.0889062,0.00014265,2]
[339483520,1727629839267,-20189.1403042,0.00014265,2]
[339483521,1727629839488,-32773.26805198,0.00014275,2]
[339483522,1727629839500,-172.64685831,0.00014285,2]
[339483523,1727629839509,-172.64685829,0.00014337,2]
[339483524,1727629839518,-1441.94940681,0.00014373,2]
[339483525,1727629839528,-1000.0,0.00014375,2]
[339483526,1727629839538,-96362.0889062,0.00014375,2]
[339483527,1727629839549,-20189.1403042,0.00014375,2]
[339483528,1727629839560,-157.375422,0.00014379,2]
[339483529,1727629839569,-96362.0889062,0.00014379,2]
[339483530,1727629839578,-20189.1403042,0.00014379,2]
[339483531,1727629839587,-4630.901708,0.00014384,2]
[339483532,1727629839596,-40378.2806084,0.00014385,2]
[339483533,1727629839606,-172.64685829,0.00014389,2]
[339483534,1727629839616,-79255.85651709,0.00014389,2]
[339483535,1727629839626,-50872.77977368,0.00014395,2]
[339483536,1727629839636,-1511.628364,0.00014395,2]
[339483537,1727629839647,-1511.628364,0.00014395,2]
[339483538,1727629839658,-151.0,0.00014395,2]
[339483539,1727629839667,-151.0,0.00014395,2]
[339483540,1727629839675,-20189.1403042,0.00014454,2]
[339483541,1727629839685,-40378.2806084,0.00014459,2]
[339483542,1727629839694,-1511.628364,0.00014464,2]
[339483543,1727629839704,-1511.628364,0.00014464,2]
[339483544,1727629839712,-151.0,0.00014464,2]
[339483545,1727629839722,-151.0,0.00014464,2]
[339483546,1727629839731,-1511.628364,0.00014469,2]
[339483547,1727629839742,-1511.628364,0.00014469,2]
[339483548,1727629839752,-151.0,0.00014469,2]
[339483549,1727629839762,-151.0,0.00014469,2]
[339483550,1727629839773,-60567.4209126,0.00014469,2]
[339483551,1727629839782,-163.0,0.0001447,2]
[339483552,1727629839791,-500.0,0.00014473,2]
[339483553,1727629839800,-500.7346796,0.00014473,2]
[339483554,1727629839810,-500.0,0.00014473,2]
[339483555,1727629839819,-500.0,0.00014473,2]
[339483556,1727629839829,-500.0,0.00014473,2]
[339483557,1727629839839,-500.0,0.00014473,2]
[339483558,1727629839848,-500.0,0.00014473,2]
[339483559,1727629839857,-500.0,0.00014473,2]
[339483560,1727629839869,-500.0,0.00014473,2]
[339483561,1727629839879,-500.0,0.00014473,2]
[339483562,1727629839892,-500.0,0.00014473,2]
[339483563,1727629839902,-500.0,0.00014473,2]
[339483564,1727629839913,-500.0,0.00014473,2]
[339483565,1727629839923,-500.0,0.00014473,2]
[339483566,1727629839933,-501.28150447,0.00014473,2]
[339483567,1727629839943,-500.0,0.00014473,2]
[339483568,1727629839955,-500.0,0.00014473,2]
[339483569,1727629839965,-500.0,0.00014473,2]
[339483570,1727629839975,-1511.628364,0.00014474,2]
[339483571,1727629839986,-1511.628364,0.00014474,2]
[339483572,1727629839997,-151.0,0.00014474,2]
[339483573,1727629840008,-172.708732,0.00014474,2]
[339483575,1727629840020,-7587.71032056,0.00014479,2]
[339483577,1727629840029,-20189.1403042,0.00014479,2]
[339483579,1727629840038,-11398.62974638,0.00014479,2]
[339484639,1727629879808,212.810524,0.00013443,2]
[339484640,1727629880003,212.810524,0.00013447,2]
[339484641,1727629880242,212.810524,0.0001345,2]
[339484642,1727629880473,212.810524,0.00013454,2]
[339484643,1727629880698,212.810524,0.00013457,2]
[339484644,1727629880933,212.810524,0.00013461,2]
[339484645,1727629881138,212.810524,0.00013464,2]
[339484646,1727629881376,212.810524,0.00013468,2]
[339484647,1727629881935,212.810524,0.00013471,2]
[339484648,1727629882185,212.810524,0.00013475,2]
[339484649,1727629882404,212.810524,0.00013478,2]
[339484650,1727629882624,212.810524,0.00013482,2]
[339484651,1727629882908,212.810524,0.00013485,2]
[339484652,1727629883106,212.810524,0.00013489,2]
[339484653,1727629883383,212.810524,0.00013492,2]
[339484654,1727629883604,212.810524,0.00013496,2]
[339484655,1727629883803,212.810524,0.000135,2]
[339484656,1727629884039,212.810524,0.00013503,2]
[339484657,1727629884381,212.810524,0.00013507,2]
[339484658,1727629884732,212.810524,0.0001351,2]
[339484659,1727629988801,1020.448416,0.00013699,2]
[339484660,1727630013724,3000.0,0.00013294,2]
[339484661,1727630016208,755.8810555,0.00013294,2]
[339484662,1727630031224,178.998761,0.00012629,2]
[339484663,1727630031628,178.998761,0.00013294,2]
[339484664,1727630031954,178.998761,0.00013959,2]
[339484666,1727630036116,3371.58048,0.00013699,2]
[339484668,1727630071125,8414.7519822,0.00013699,2]
[339484669,1727630087126,247.1263011,0.00013266,2]
[339484671,1727630097666,24900.0,0.00013266,2]
[339484672,1727630147840,255.0685738,0.00014074,2]
[339484674,1727630236124,32773.26805198,0.00014064,2]
[339484678,1727630381414,250.0,0.00013159,2]
[339484682,1727630510573,413.3165261,0.00013156,2]
[339484686,1727630558983,3000.0,0.00013154,2]
[339484687,1727630572140,2247.72032,0.00013699,2]
[339484688,1727630591398,172.64685831,0.00014053,2]
[339484689,1727630593408,1000.0,0.00014,4]
[339484690,1727630593443,172.64685829,0.00014101,2]
[339484691,1727630629878,510.224208,0.00013699,2]
[339484694,1727630697616,1000.0,0.00014038,2]
[339484698,1727630716139,7067.94404438,0.00013994,2]
[339484699,1727630740956,1503.59840681,0.00014048,2]
[339484702,1727630784127,1000.0,0.00014038,2]
[339484705,1727630873330,53490.38646748,0.00013,2]
[339484706,1727630891733,1000.0,0.00014037,2]
[339484707,1727630899057,10104.4160321,0.000125,2]
[339484710,1727630924169,172.64685829,0.00014025,2]
[339484711,1727630927975,250.0,0.00013131,2]
[339484726,1727630984169,1000.0,0.00014037,2]
[339484727,1727630989118,225.0,0.00013227,2]
[339484728,1727630989466,225.0,0.00013263,2]
[339484729,1727630989792,225.0,0.000133,2]
[339484730,1727630990119,225.0,0.00013336,2]
[339484731,1727630990347,225.0,0.00013372,2]
[339484732,1727630990574,225.0,0.00013408,2]
[339484733,1727630990797,225.0,0.00013445,2]
[339484734,1727630990997,225.0,0.00013481,2]
[339484735,1727630991397,225.0,0.00013517,2]
[339484736,1727630991611,225.0,0.00013553,2]
[339484737,1727630991819,225.0,0.0001359,2]
[339484738,1727630992044,225.0,0.00013626,2]
[339484739,1727630992302,225.0,0.00013662,2]
[339484740,1727630992512,225.0,0.00013699,2]
[339484741,1727630992738,225.0,0.00013735,2]
[339484742,1727630993654,225.0,0.00013771,2]
[339484743,1727630993743,225.0,0.00013807,2]
[339484744,1727630993845,225.0,0.00013844,2]
[339484745,1727630993908,225.0,0.0001388,2]
[339484746,1727630994078,225.0,0.00013916,2]
[339484863,1727631033286,-500.0,0.00014124,2]
[339484865,1727631033296,-500.0,0.00014124,2]
[339484866,1727631033308,-500.0,0.00014124,2]
[339484868,1727631033317,-155.71286929,0.00014124,2]
[339484870,1727631033326,-102.08548182,0.00014124,2]
[339484888,1727631033492,-397.91451818,0.00014124,2]
[339484889,1727631033501,-204.75486844,0.00014124,2]
[339484892,1727631033511,-238.56786444,0.00014124,2]